[Event "Open Cappelle-la-Grande"]
[Date "2025.02.20"]
[White "Boyer, Mahel"]
[Black "Suleymenov, Alisher"]
[WhiteElo "2509"]
[BlackElo "2481"]
[Round "8.8.2"]
[Result "1-0"]
[TimeControl "40/5400+30:1800+30"]

1. Nf3 {[%clk 1:30:56]} 1... d5 {[%clk 1:29:13]} 2. b3 {[%clk 1:31:10]} 2... c5
{[%clk 1:18:50]} 3. e3 {[%clk 1:30:07]} 3... Nf6 {[%clk 1:19:14]} 4. Bb2 {[%clk
1:30:23]} 4... e6 {[%clk 1:16:09]} 5. Bb5+ {[%clk 1:26:58]} 5... Nbd7 {[%clk
1:13:20]} 6. O-O {[%clk 1:18:25]} 6... Be7 {[%clk 1:10:16]} 7. a4 {[%clk
1:01:10]} 7... O-O {[%clk 1:09:15]} 8. d4 {[%clk 1:00:52]} 8... a6 {[%clk
1:00:55]} 9. Bd3 {[%clk 1:01:02]} 9... b6 {[%clk 1:00:42]} 10. Nbd2 {[%clk
1:01:12]} 10... Bb7 {[%clk 1:00:55]} 11. Qe2 {[%clk 1:00:45]} 11... Ne4 {[%clk
1:00:01]} 12. Rfd1 {[%clk 1:00:03]} 12... cxd4 {[%clk 0:57:39]} 13. exd4 {[%clk
1:00:09]} 13... f5 {[%clk 0:57:39]} 14. c4 {[%clk 1:00:10]} 14... Bd6 {[%clk
0:44:10]} 15. Ne5 {[%clk 0:51:28]} 15... Qh4 {[%clk 0:28:20]} 16. Ndf3 {[%clk
0:47:57]} 16... Qe7 {[%clk 0:28:43]} 17. Nxd7 {[%clk 0:33:21]} 17... Qxd7 {[%clk
0:28:59]} 18. Ne5 {[%clk 0:33:47]} 18... Qe7 {[%clk 0:28:57]} 19. a5 {[%clk
0:31:59]} 19... bxa5 {[%clk 0:27:56]} 20. Rxa5 {[%clk 0:31:30]} 20... Qd8 {[%clk
0:24:26]} 21. Qe1 {[%clk 0:20:08]} 21... Bc7 {[%clk 0:21:56]} 22. Ra3 {[%clk
0:19:49]} 22... Rf6 {[%clk 0:18:21]} 23. Bf1 {[%clk 0:15:55]} 23... Bd6 {[%clk
0:15:39]} 24. c5 {[%clk 0:15:59]} 24... Bxe5 {[%clk 0:13:36]} 25. dxe5 {[%clk
0:15:54]} 25... Rg6 {[%clk 0:11:43]} 26. b4 {[%clk 0:15:26]} 26... f4 {[%clk
0:08:51]} 27. f3 {[%clk 0:15:23]} 27... Ng5 {[%clk 0:09:17]} 28. Bd4 {[%clk
0:15:27]} 28... Nf7 {[%clk 0:06:49]} 29. Rda1 {[%clk 0:12:43]} 29... Nh6 {[%clk
0:07:13]} 30. b5 {[%clk 0:12:41]} 30... Nf5 {[%clk 0:05:38]} 31. Bf2 {[%clk
0:13:05]} 31... axb5 {[%clk 0:04:24]} 32. Rxa8 {[%clk 0:13:27]} 32... Bxa8
{[%clk 0:04:51]} 33. Qa5 {[%clk 0:13:50]} 33... Qxa5 {[%clk 0:05:07]} 34. Rxa5
{[%clk 0:14:18]} 34... Bc6 {[%clk 0:05:14]} 35. Ra6 {[%clk 0:10:30]} 35... Ne7
{[%clk 0:02:29]} 36. Bh4 {[%clk 0:07:33]} 36... Nf5 {[%clk 0:02:58]} 37. Rxc6
{[%clk 0:07:17]} 37... Nxh4 {[%clk 0:03:24]} 38. Kf2 {[%clk 0:07:41]} 38... Kf7
{[%clk 0:01:31]} 39. Rd6 {[%clk 0:07:41]} 39... Nf5 {[%clk 0:00:45]} 40. c6
{[%clk 0:08:08]} 40... Ne7 {[%clk 0:00:31]} 41. c7 {[%clk 0:08:23]} 1-0

[Variant "Standard"]
[Site "Europe Echecs"]

[Event "Open Cappelle-la-Grande"]
[Date "2025.02.20"]
[White "Bauer, Christian"]
[Black "Carnicelli, Valerio"]
[WhiteElo "2548"]
[BlackElo "2378"]
[Round "8.8.3"]
[Result "1/2-1/2"]
[TimeControl "40/5400+30:1800+30"]

1. d4 {[%clk 1:28:32]} 1... Nf6 {[%clk 1:30:47]} 2. Nf3 {[%clk 1:28:07]} 2... g6
{[%clk 1:31:13]} 3. Nc3 {[%clk 1:28:26]} 3... d5 {[%clk 1:31:34]} 4. Bf4 {[%clk
1:28:48]} 4... Bg7 {[%clk 1:30:38]} 5. Nb5 {[%clk 1:27:59]} 5... Na6 {[%clk
1:31:00]} 6. e3 {[%clk 1:28:24]} 6... O-O {[%clk 1:29:31]} 7. h3 {[%clk
1:20:58]} 7... Ne4 {[%clk 1:27:01]} 8. c3 {[%clk 1:21:06]} 8... f6 {[%clk
1:14:30]} 9. Be2 {[%clk 1:12:59]} 9... c6 {[%clk 1:12:01]} 10. Na3 {[%clk
1:13:00]} 10... e5 {[%clk 1:12:00]} 11. Bh2 {[%clk 1:13:23]} 11... Qe7 {[%clk
1:08:08]} 12. Rc1 {[%clk 1:03:05]} 12... Nc7 {[%clk 1:01:53]} 13. O-O {[%clk
1:02:05]} 13... b5 {[%clk 0:59:50]} 14. Nc2 {[%clk 0:58:52]} 14... Bb7 {[%clk
0:54:41]} 15. Nce1 {[%clk 0:55:25]} 15... Nd6 {[%clk 0:53:40]} 16. b3 {[%clk
0:53:33]} 16... e4 {[%clk 0:44:05]} 17. Nd2 {[%clk 0:52:56]} 17... f5 {[%clk
0:43:55]} 18. c4 {[%clk 0:53:10]} 18... g5 {[%clk 0:43:29]} 19. c5 {[%clk
0:48:59]} 19... Nf7 {[%clk 0:34:13]} 20. a4 {[%clk 0:45:23]} 20... a6 {[%clk
0:33:36]} 21. b4 {[%clk 0:36:07]} 21... f4 {[%clk 0:24:51]} 22. Nb3 {[%clk
0:35:29]} 22... Ne6 {[%clk 0:23:59]} 23. Na5 {[%clk 0:35:36]} 23... Nh6 {[%clk
0:23:26]} 24. Nc2 {[%clk 0:35:44]} 24... Nf5 {[%clk 0:23:19]} 25. Bg4 {[%clk
0:35:36]} 25... Rf6 {[%clk 0:17:11]} 26. axb5 {[%clk 0:27:04]} 26... axb5 {[%clk
0:17:39]} 27. f3 {[%clk 0:26:58]} 27... Raf8 {[%clk 0:10:51]} 28. Nxb7 {[%clk
0:20:17]} 28... Qxb7 {[%clk 0:11:19]} 29. fxe4 {[%clk 0:20:04]} 29... dxe4
{[%clk 0:11:34]} 30. exf4 {[%clk 0:18:04]} 30... gxf4 {[%clk 0:11:52]} 31. Qe2
{[%clk 0:11:24]} 31... e3 {[%clk 0:10:55]} 32. Rcd1 {[%clk 0:06:11]} 32... R6f7
{[%clk 0:08:41]} 33. Bxf4 {[%clk 0:03:53]} 33... Nxf4 {[%clk 0:08:17]} 34. Rxf4
{[%clk 0:04:22]} 34... Ng3 {[%clk 0:08:35]} 35. Qxe3 {[%clk 0:04:46]} 35... Rxf4
{[%clk 0:08:57]} 36. Qxg3 {[%clk 0:04:29]} 36... Qb8 {[%clk 0:07:17]} 37. Qe3
{[%clk 0:02:57]} 37... Kh8 {[%clk 0:04:09]} 38. Re1 {[%clk 0:02:10]} 38... Qd8
{[%clk 0:03:23]} 39. Kh2 {[%clk 0:01:28]} 39... Rf2 {[%clk 0:02:09]} 40. Re2
{[%clk 0:01:00]} 40... Rf1 {[%clk 0:00:50]} 41. Qe7 {[%clk 0:23:46]} 41... Bxd4
{[%clk 0:21:31]} 42. Nxd4 {[%clk 0:15:32]} 42... Qxd4 {[%clk 0:21:52]} 43. Qe5+
{[%clk 0:15:41]} 43... Qxe5+ {[%clk 0:22:18]} 44. Rxe5 {[%clk 0:16:08]} 44...
R1f4 {[%clk 0:09:26]} 45. Bf3 {[%clk 0:09:31]} 45... R8f6 {[%clk 0:07:20]} 46.
Re8+ {[%clk 0:06:07]} 46... Kg7 {[%clk 0:07:48]} 47. Rc8 {[%clk 0:06:32]} 47...
Rxb4 {[%clk 0:07:57]} 48. Bxc6 {[%clk 0:05:46]} 48... Rb2 {[%clk 0:05:57]} 49.
Bd5 {[%clk 0:05:23]} 49... Rf5 {[%clk 0:01:34]} 50. Be4 {[%clk 0:03:52]} 50...
Re5 {[%clk 0:01:57]} 51. Bf3 {[%clk 0:03:55]} 51... b4 {[%clk 0:00:54]} 52. c6
{[%clk 0:04:09]} 52... Rc5 {[%clk 0:01:22]} 53. Rc7+ {[%clk 0:03:52]} 53... Kg6
{[%clk 0:00:33]} 54. Be4+ {[%clk 0:04:11]} 54... Kf6 {[%clk 0:00:33]} 55. Rxh7
{[%clk 0:04:10]} 55... b3 {[%clk 0:00:33]} 56. Rb7 {[%clk 0:04:22]} 56... Ke5
{[%clk 0:00:39]} 57. Bf3 {[%clk 0:03:59]} 57... Rc3 {[%clk 0:00:58]} 58. Bd1
{[%clk 0:01:31]} 58... Rb1 {[%clk 0:00:55]} 59. Bf3 {[%clk 0:01:23]} 59... b2
{[%clk 0:00:33]} 60. h4 {[%clk 0:00:49]} 60... Kd6 {[%clk 0:00:32]} 61. h5
{[%clk 0:00:57]} 61... Rc5 {[%clk 0:00:31]} 62. Kg3 {[%clk 0:00:45]} 62... Rc2
{[%clk 0:00:37]} 63. Be4 {[%clk 0:00:46]} 63... Rc3+ {[%clk 0:01:06]} 64. Kh2
{[%clk 0:01:06]} 64... Re1 {[%clk 0:01:34]} 65. Bg6 {[%clk 0:01:10]} 65... Kxc6
{[%clk 0:00:52]} 66. Rxb2 {[%clk 0:01:36]} 66... Rcc1 {[%clk 0:00:40]} 67. Kg3
{[%clk 0:01:22]} 67... Rh1 {[%clk 0:00:51]} 68. Kg4 {[%clk 0:01:29]} 68... Rc5
{[%clk 0:00:41]} 69. Rf2 {[%clk 0:01:08]} 69... Kd6 {[%clk 0:01:02]} 70. Bf5
{[%clk 0:01:04]} 70... Ke7 {[%clk 0:00:39]} 71. Kg5 {[%clk 0:01:29]} 71... Rh2
{[%clk 0:00:43]} 72. Kh6 {[%clk 0:01:30]} 72... Rxf5 {[%clk 0:01:01]} 73. Rxf5
{[%clk 0:01:56]} 73... Rxg2 {[%clk 0:01:26]} 74. Kh7 {[%clk 0:02:04]} 74... Rg1
{[%clk 0:01:25]} 75. h6 {[%clk 0:02:04]} 75... Rg2 {[%clk 0:01:50]} 76. Ra5
{[%clk 0:02:19]} 76... Kf7 {[%clk 0:01:17]} 77. Ra7+ {[%clk 0:02:20]} 77... Kf8
{[%clk 0:01:43]} 78. Rg7 {[%clk 0:02:46]} 78... Rf2 {[%clk 0:01:14]} 79. Rg4
{[%clk 0:01:48]} 79... Kf7 {[%clk 0:01:39]} 80. Ra4 {[%clk 0:01:34]} 80... Rg2
{[%clk 0:02:01]} 81. Ra1 {[%clk 0:00:59]} 81... Rg3 {[%clk 0:02:25]} 82. Ra7+
{[%clk 0:00:54]} 82... Kf8 {[%clk 0:02:48]} 83. Rg7 {[%clk 0:00:57]} 83... Rf3
{[%clk 0:03:16]} 84. Kg6 {[%clk 0:00:54]} 84... Rg3+ {[%clk 0:03:41]} 85. Kf6
{[%clk 0:01:16]} 85... Rxg7 {[%clk 0:04:01]} 86. hxg7+ {[%clk 0:01:43]} 86...
Kg8 {[%clk 0:04:28]} 87. Kg6 {[%clk 0:01:38]} 1/2-1/2

[Variant "Standard"]
[Site "Europe Echecs"]

[Event "Open Cappelle-la-Grande"]
[Date "2025.02.20"]
[White "Sorensen, Hampus"]
[Black "Raja Rithvik R"]
[WhiteElo "2430"]
[BlackElo "2522"]
[Round "8.8.4"]
[Result "1/2-1/2"]
[TimeControl "40/5400+30:1800+30"]

1. d4 {[%clk 1:30:35]} 1... Nf6 {[%clk 1:30:49]} 2. Bf4 {[%clk 1:30:46]} 2... d5
{[%clk 1:30:46]} 3. e3 {[%clk 1:31:00]} 3... e6 {[%clk 1:29:25]} 4. Nf3 {[%clk
1:31:06]} 4... c5 {[%clk 1:29:09]} 5. Nbd2 {[%clk 1:31:07]} 5... Bd6 {[%clk
1:29:23]} 6. Bxd6 {[%clk 1:16:11]} 6... Qxd6 {[%clk 1:29:34]} 7. dxc5 {[%clk
1:16:29]} 7... Qxc5 {[%clk 1:29:58]} 8. c4 {[%clk 1:16:48]} 8... O-O {[%clk
1:24:48]} 9. Be2 {[%clk 1:10:51]} 9... Nc6 {[%clk 1:15:47]} 10. O-O {[%clk
1:06:14]} 10... b6 {[%clk 1:08:54]} 11. cxd5 {[%clk 0:56:46]} 11... Qxd5 {[%clk
1:09:09]} 12. Qa4 {[%clk 0:57:00]} 12... Bb7 {[%clk 1:07:05]} 13. Rfd1 {[%clk
0:56:25]} 13... Rfd8 {[%clk 1:05:44]} 14. Nb3 {[%clk 0:50:24]} 14... Qe4 {[%clk
1:02:13]} 15. Qxe4 {[%clk 0:49:38]} 15... Nxe4 {[%clk 1:02:38]} 16. a3 {[%clk
0:49:55]} 16... Kf8 {[%clk 0:55:44]} 17. Kf1 {[%clk 0:48:05]} 17... e5 {[%clk
0:49:50]} 18. Nbd2 {[%clk 0:44:34]} 18... Nd6 {[%clk 0:42:25]} 19. Nc4 {[%clk
0:40:00]} 19... Nxc4 {[%clk 0:42:43]} 20. Bxc4 {[%clk 0:40:28]} 20... f6 {[%clk
0:42:38]} 21. Bd5 {[%clk 0:34:54]} 21... Rac8 {[%clk 0:37:16]} 22. Ke1 {[%clk
0:33:19]} 22... Rxd5 {[%clk 0:31:33]} 23. Rxd5 {[%clk 0:33:37]} 23... Nb4 {[%clk
0:32:00]} 24. Rdd1 {[%clk 0:26:02]} 24... Nc2+ {[%clk 0:30:47]} 25. Kd2 {[%clk
0:26:27]} 25... Nxa1 {[%clk 0:31:09]} 26. Rxa1 {[%clk 0:26:56]} 26... Kf7 {[%clk
0:28:40]} 27. Ne1 {[%clk 0:15:16]} 27... Ke6 {[%clk 0:29:01]} 28. f3 {[%clk
0:15:12]} 28... f5 {[%clk 0:27:38]} 29. a4 {[%clk 0:12:19]} 29... a5 {[%clk
0:22:31]} 30. Ra3 {[%clk 0:12:03]} 30... g5 {[%clk 0:18:59]} 31. Rc3 {[%clk
0:10:10]} 31... Rxc3 {[%clk 0:17:20]} 32. Kxc3 {[%clk 0:10:37]} 32... Bc6 {[%clk
0:17:43]} 33. b3 {[%clk 0:10:54]} 33... h5 {[%clk 0:17:59]} 34. g3 {[%clk
0:01:11]} 34... h4 {[%clk 0:02:52]} 35. gxh4 {[%clk 0:01:36]} 35... gxh4 {[%clk
0:03:18]} 36. Kd2 {[%clk 0:00:32]} 36... Kd6 {[%clk 0:01:55]} 37. Kc3 {[%clk
0:00:50]} 37... Ke6 {[%clk 0:00:43]} 38. Kd2 {[%clk 0:01:13]} 38... Kd6 {[%clk
0:00:33]} 39. Kc3 {[%clk 0:01:42]} 39... Bb7 {[%clk 0:00:35]} 40. Kc4 {[%clk
0:00:59]} 40... Bd5+ {[%clk 0:00:34]} 41. Kc3 {[%clk 0:28:06]} 41... Bb7 {[%clk
0:14:58]} 42. Kd2 {[%clk 0:24:27]} 42... Bd5 {[%clk 0:14:25]} 43. Kc3 {[%clk
0:24:30]} 43... Bc6 {[%clk 0:12:40]} 44. Kc4 {[%clk 0:22:18]} 44... Bd5+ {[%clk
0:04:40]} 45. Kc3 {[%clk 0:22:22]} 45... Bc6 {[%clk 0:03:31]} 46. Kc4 {[%clk
0:20:33]} 46... Bb7 {[%clk 0:03:31]} 47. Kc3 {[%clk 0:20:29]} 47... Ba6 48. Kd2
{[%clk 0:20:26]} 48... Kd5 {[%clk 0:03:31]} 49. Kc3 {[%clk 0:22:13]} 49... h3
50. Kd2 {[%clk 0:20:11]} 50... Bf1 {[%clk 0:03:31]} 51. Kc3 {[%clk 0:20:07]}
51... Kc5 {[%clk 0:03:31]} 52. f4 {[%clk 0:19:51]} 1/2-1/2

[Variant "Standard"]
[Site "Europe Echecs"]

[Event "Open Cappelle-la-Grande"]
[Date "2025.02.20"]
[White "Bacrot, Alexandre"]
[Black "Muthaiah AL"]
[WhiteElo "2423"]
[BlackElo "2474"]
[Round "8.8.5"]
[Result "*"]
[TimeControl "40/5400+30:1800+30"]

1. e4 {[%clk 1:30:58]} 1... c5 {[%clk 1:29:15]} 2. d4 {[%clk 1:30:17]} 2... cxd4
{[%clk 1:29:30]} 3. Qxd4 {[%clk 1:30:45]} 3... Nc6 {[%clk 1:29:28]} 4. Qe3
{[%clk 1:31:12]} 4... Nf6 {[%clk 1:29:36]} 5. Nf3 {[%clk 1:31:38]} 5... d5
{[%clk 1:29:48]} 6. exd5 {[%clk 1:32:04]} 6... Nxd5 {[%clk 1:29:54]} 7. Qb3
{[%clk 1:32:31]} 7... e6 {[%clk 1:25:44]} 8. Be2 {[%clk 1:32:50]} 8... Qc7
{[%clk 1:21:46]} 9. O-O {[%clk 1:31:29]} 9... Be7 {[%clk 1:18:46]} 10. Nc3
{[%clk 1:22:26]} 10... Nf4 {[%clk 1:13:44]} 11. Bb5 {[%clk 1:13:48]} 11... Bd7
{[%clk 1:06:22]} 12. Bxf4 {[%clk 0:59:53]} 12... Qxf4 {[%clk 1:06:43]} 13. Rad1
{[%clk 1:00:22]} 13... O-O-O {[%clk 0:59:43]} 14. Rfe1 {[%clk 0:55:39]} 14...
Qc7 {[%clk 0:52:32]} 15. Nd4 {[%clk 0:45:53]} 15... Na5 {[%clk 0:41:02]} 16. Qa4
{[%clk 0:44:18]} 16... a6 {[%clk 0:30:11]} 17. Bxd7+ {[%clk 0:32:28]} 17... Rxd7
{[%clk 0:30:19]} 18. Nf5 {[%clk 0:31:05]} 18... Rxd1 {[%clk 0:27:51]} 19. Nxe7+
{[%clk 0:30:42]} 19... Qxe7 {[%clk 0:28:12]} 20. Rxd1 {[%clk 0:31:10]} 20... Nc6
{[%clk 0:28:23]} 21. Qe4 {[%clk 0:28:15]} 21... g6 {[%clk 0:19:38]} 22. a3
{[%clk 0:28:17]} 22... Rd8 {[%clk 0:19:33]} 23. Rxd8+ {[%clk 0:27:52]} 23...
Qxd8 {[%clk 0:19:50]} 24. Qf4 {[%clk 0:27:30]} 24... f5 {[%clk 0:19:22]} 25. Qc4
{[%clk 0:24:47]} 25... Qd6 {[%clk 0:16:24]} 26. h3 {[%clk 0:24:31]} 26... Qe5
{[%clk 0:13:29]} 27. Kf1 {[%clk 0:22:10]} 27... Kc7 {[%clk 0:10:14]} 28. Qh4
{[%clk 0:20:31]} 28... Qg7 {[%clk 0:10:19]} 29. Qf4+ {[%clk 0:20:53]} 29... Kc8
{[%clk 0:08:18]} 30. Qd6 {[%clk 0:19:10]} 30... Qd7 {[%clk 0:07:56]} 31. Qxd7+
{[%clk 0:19:21]} 31... Kxd7 {[%clk 0:08:24]} 32. Ke2 {[%clk 0:19:44]} 32... Kd6
{[%clk 0:08:13]} 33. Kd2 {[%clk 0:18:19]} 33... g5 {[%clk 0:06:44]} 34. Ne2
{[%clk 0:17:12]} 34... Ne5 {[%clk 0:06:19]} 35. b3 {[%clk 0:16:30]} 35... Ng6
{[%clk 0:05:21]} 36. g3 {[%clk 0:11:37]} 36... h5 {[%clk 0:04:43]} 37. f4 {[%clk
0:11:04]} 37... gxf4 {[%clk 0:03:03]} 38. Nxf4 {[%clk 0:11:29]} 38... Nxf4
{[%clk 0:03:08]} 39. gxf4 {[%clk 0:11:53]} 39... h4 {[%clk 0:01:59]} 40. Ke3
{[%clk 0:10:04]} 40... e5 {[%clk 0:01:09]} 41. c4 {[%clk 0:00:32]} 41... a5
{[%clk 0:18:05]} 42. b4 {[%clk 0:26:03]} 42... e4 {[%clk 0:12:52]} 43. Kd4
{[%clk 0:26:20]} 43... b6 {[%clk 0:11:41]} 44. Ke3 {[%clk 0:26:40]} 44... Kc6
{[%clk 0:11:13]} 45. Kd4 {[%clk 0:27:02]} 45... Kd6 {[%clk 0:10:50]} 46. Ke3
{[%clk 0:27:25]} 46... Kc6 {[%clk 0:10:37]} *

[Variant "Standard"]
[Site "Europe Echecs"]

[Event "Open Cappelle-la-Grande"]
[Date "2025.02.20"]
[White "Wirig, Anthony"]
[Black "Eugene, Floryan"]
[WhiteElo "2419"]
[BlackElo "2468"]
[Round "8.8.6"]
[Result "1/2-1/2"]
[TimeControl "40/5400+30:1800+30"]

1. d4 {[%clk 1:30:57]} 1... Nf6 {[%clk 1:29:34]} 2. c4 {[%clk 1:31:18]} 2... g6
{[%clk 1:29:58]} 3. Nc3 {[%clk 1:31:44]} 3... Bg7 {[%clk 1:30:23]} 4. e4 {[%clk
1:32:10]} 4... d6 {[%clk 1:30:46]} 5. Be2 {[%clk 1:32:37]} 5... O-O {[%clk
1:29:53]} 6. h4 {[%clk 1:33:04]} 6... c5 {[%clk 1:17:12]} 7. d5 {[%clk 1:31:25]}
7... e6 {[%clk 1:14:14]} 8. h5 {[%clk 1:31:42]} 8... exd5 {[%clk 1:14:21]} 9.
exd5 {[%clk 1:32:10]} 9... Nbd7 {[%clk 1:11:47]} 10. h6 {[%clk 1:24:15]} 10...
Bh8 {[%clk 1:12:10]} 11. Bg5 {[%clk 1:24:39]} 11... Re8 {[%clk 1:09:13]} 12. Rh4
{[%clk 1:14:11]} 12... b5 {[%clk 0:57:05]} 13. cxb5 {[%clk 1:14:10]} 13... a6
{[%clk 0:57:30]} 14. Kf1 {[%clk 0:59:16]} 14... axb5 {[%clk 0:55:51]} 15. Bxb5
{[%clk 0:58:18]} 15... Qb6 {[%clk 0:56:03]} 16. a4 {[%clk 0:55:48]} 16... Ba6
{[%clk 0:53:59]} 17. Nf3 {[%clk 0:52:29]} 17... Bxb5+ {[%clk 0:50:41]} 18. axb5
{[%clk 0:52:27]} 18... Qb7 {[%clk 0:40:14]} 19. Rxa8 {[%clk 0:42:42]} 19... Rxa8
{[%clk 0:40:33]} 20. Ra4 {[%clk 0:43:04]} 20... Nb6 {[%clk 0:35:21]} 21. Rxa8+
{[%clk 0:42:13]} 21... Qxa8 {[%clk 0:35:47]} 22. Bf4 {[%clk 0:33:42]} 22... Ne8
{[%clk 0:20:03]} 23. g3 {[%clk 0:29:32]} 23... Bxc3 {[%clk 0:18:44]} 24. bxc3
{[%clk 0:30:00]} 24... Qxd5 {[%clk 0:19:05]} 25. Qxd5 {[%clk 0:25:23]} 25...
Nxd5 {[%clk 0:19:30]} 26. Nd2 {[%clk 0:20:59]} 26... Kf8 {[%clk 0:15:28]} 27.
Nc4 {[%clk 0:13:37]} 27... Ke7 {[%clk 0:14:46]} 28. b6 {[%clk 0:13:37]} 28...
Kd7 {[%clk 0:15:11]} 29. b7 {[%clk 0:13:53]} 29... Kc7 {[%clk 0:15:40]} 30.
Bxd6+ {[%clk 0:13:25]} 30... Kxb7 {[%clk 0:16:05]} 31. Bxc5 {[%clk 0:13:47]}
31... Nxc3 {[%clk 0:16:17]} 32. Ne5 {[%clk 0:13:05]} 32... Ne4 {[%clk 0:16:36]}
33. Be7 {[%clk 0:08:59]} 1/2-1/2

[Variant "Standard"]
[Site "Europe Echecs"]

[Event "Open Cappelle-la-Grande"]
[Date "2025.02.20"]
[White "Flom, Gabriel"]
[Black "Abergel, Thal"]
[WhiteElo "2455"]
[BlackElo "2419"]
[Round "8.8.7"]
[Result "0-1"]
[TimeControl "40/5400+30:1800+30"]

1. d4 {[%clk 1:30:58]} 1... Nf6 {[%clk 1:30:54]} 2. c4 {[%clk 1:31:21]} 2... e6
{[%clk 1:31:15]} 3. Nc3 {[%clk 1:31:46]} 3... d5 {[%clk 1:31:05]} 4. cxd5 {[%clk
1:31:50]} 4... exd5 {[%clk 1:31:29]} 5. Bg5 {[%clk 1:31:41]} 5... Be7 {[%clk
1:31:32]} 6. e3 {[%clk 1:32:02]} 6... h6 {[%clk 1:31:47]} 7. Bh4 {[%clk
1:27:48]} 7... Bg4 {[%clk 1:31:47]} 8. Nf3 {[%clk 1:17:24]} 8... Nbd7 {[%clk
1:28:56]} 9. Bd3 {[%clk 1:13:08]} 9... O-O {[%clk 1:27:55]} 10. h3 {[%clk
1:11:42]} 10... Be6 {[%clk 1:27:49]} 11. Bg3 {[%clk 1:04:44]} 11... c5 {[%clk
1:25:58]} 12. O-O {[%clk 1:02:44]} 12... c4 {[%clk 1:21:17]} 13. Bc2 {[%clk
1:03:09]} 13... a6 {[%clk 1:21:33]} 14. Ne5 {[%clk 1:01:05]} 14... b5 {[%clk
1:11:10]} 15. Nc6 {[%clk 0:55:11]} 15... Qe8 {[%clk 1:11:35]} 16. a3 {[%clk
0:55:15]} 16... Nb6 {[%clk 1:09:56]} 17. Nxe7+ {[%clk 0:54:52]} 17... Qxe7
{[%clk 1:10:25]} 18. Bh4 {[%clk 0:54:57]} 18... Rac8 {[%clk 1:06:55]} 19. f3
{[%clk 0:48:49]} 19... g5 {[%clk 1:00:31]} 20. Bf2 {[%clk 0:48:46]} 20... Qd7
{[%clk 0:56:36]} 21. e4 {[%clk 0:45:00]} 21... Rc6 {[%clk 0:52:00]} 22. h4
{[%clk 0:43:37]} 22... Nh5 {[%clk 0:51:32]} 23. Qd2 {[%clk 0:41:14]} 23... f6
{[%clk 0:50:34]} 24. Rae1 {[%clk 0:39:17]} 24... Rc7 {[%clk 0:46:14]} 25. e5
{[%clk 0:31:28]} 25... Qg7 {[%clk 0:35:32]} 26. exf6 {[%clk 0:30:21]} 26... Rxf6
{[%clk 0:34:55]} 27. hxg5 {[%clk 0:29:19]} 27... hxg5 {[%clk 0:34:03]} 28. Re5
{[%clk 0:29:22]} 28... Nf4 {[%clk 0:33:45]} 29. Bg3 {[%clk 0:27:28]} 29... Rc6
{[%clk 0:31:37]} 30. Rfe1 {[%clk 0:25:55]} 30... Qh6 {[%clk 0:31:41]} 31. Bh2
{[%clk 0:13:32]} 31... Kf7 {[%clk 0:24:19]} 32. g4 {[%clk 0:09:02]} 32... Qh4
{[%clk 0:14:45]} 33. Bxf4 {[%clk 0:08:02]} 33... Rxf4 {[%clk 0:15:11]} 34. R5e3
{[%clk 0:05:52]} 34... Bxg4 {[%clk 0:09:41]} 35. Re7+ {[%clk 0:03:48]} 35... Kf6
{[%clk 0:10:10]} 36. Ne2 {[%clk 0:04:14]} 36... Rxf3 {[%clk 0:08:50]} 37. Rh7
{[%clk 0:04:43]} 37... Rg3+ {[%clk 0:05:30]} 38. Nxg3 {[%clk 0:04:56]} 38...
Qxg3+ {[%clk 0:05:58]} 39. Qg2 {[%clk 0:04:55]} 39... Qxe1+ {[%clk 0:06:15]} 40.
Kh2 {[%clk 0:05:24]} 40... Re6 {[%clk 0:05:29]} 0-1

[Variant "Standard"]
[Site "Europe Echecs"]

[Event "Open Cappelle-la-Grande"]
[Date "2025.02.20"]
[White "Kanov, Nikola"]
[Black "Duboue, Peio"]
[WhiteElo "2405"]
[BlackElo "2440"]
[Round "8.8.8"]
[Result "1/2-1/2"]
[TimeControl "40/5400+30:1800+30"]

1. e4 {[%clk 1:29:44]} 1... e5 {[%clk 1:30:48]} 2. Nf3 {[%clk 1:30:01]} 2... Nc6
{[%clk 1:31:14]} 3. Bc4 {[%clk 1:30:15]} 3... Nf6 {[%clk 1:31:25]} 4. d3 {[%clk
1:30:23]} 4... Bc5 {[%clk 1:31:40]} 5. O-O {[%clk 1:29:41]} 5... O-O {[%clk
1:31:51]} 6. c3 {[%clk 1:29:19]} 6... d5 {[%clk 1:31:53]} 7. exd5 {[%clk
1:29:06]} 7... Nxd5 {[%clk 1:32:18]} 8. Re1 {[%clk 1:26:53]} 8... Bg4 {[%clk
1:31:50]} 9. h3 {[%clk 1:26:40]} 9... Bh5 {[%clk 1:31:37]} 10. Nbd2 {[%clk
1:26:42]} 10... Nb6 {[%clk 1:31:25]} 11. b4 {[%clk 1:26:34]} 11... Be7 {[%clk
1:30:25]} 12. Qe2 {[%clk 1:25:24]} 12... Nxc4 {[%clk 1:28:31]} 13. Nxc4 {[%clk
1:25:47]} 13... Bf6 {[%clk 1:28:54]} 14. b5 {[%clk 1:25:32]} 14... Nb4 {[%clk
1:28:21]} 15. cxb4 {[%clk 1:25:04]} 15... e4 {[%clk 1:28:28]} 16. Bg5 {[%clk
1:25:07]} 16... exf3 {[%clk 1:25:59]} 17. Bxf6 {[%clk 1:25:22]} 17... fxe2
{[%clk 1:19:44]} 18. Bxd8 {[%clk 1:25:43]} 18... Raxd8 {[%clk 1:18:37]} 19. f3
{[%clk 1:21:05]} 19... Bg6 {[%clk 1:13:13]} 20. Na5 {[%clk 1:17:40]} 20... Bxd3
{[%clk 0:57:59]} 21. Nxb7 {[%clk 1:15:47]} 21... Rd4 {[%clk 0:58:21]} 22. a4
{[%clk 0:44:59]} 22... Rxb4 {[%clk 0:57:12]} 23. Nc5 {[%clk 0:42:06]} 23... Bc4
{[%clk 0:52:03]} 24. Kf2 {[%clk 0:34:45]} 24... h6 {[%clk 0:39:26]} 25. Na6
{[%clk 0:28:22]} 25... Rb2 {[%clk 0:39:07]} 26. Rac1 {[%clk 0:24:52]} 26... Bb3
{[%clk 0:37:48]} 27. Rxc7 {[%clk 0:22:30]} 27... Bxa4 {[%clk 0:37:25]} 28. Rxa7
{[%clk 0:22:25]} 28... Bd1 {[%clk 0:28:46]} 29. Rb7 {[%clk 0:21:22]} 29... Rd8
{[%clk 0:27:46]} 30. Nb8 {[%clk 0:16:12]} 30... g5 {[%clk 0:20:28]} 31. Nc6
{[%clk 0:15:27]} 31... Re8 {[%clk 0:16:27]} 32. Nd4 {[%clk 0:12:15]} 32... Re5
{[%clk 0:14:39]} 33. b6 {[%clk 0:11:19]} 33... Rd5 {[%clk 0:13:02]} 34. Nc6
{[%clk 0:08:30]} 34... Kg7 {[%clk 0:08:07]} 35. Ne7 {[%clk 0:07:31]} 35... Re5
{[%clk 0:07:43]} 36. Nc8 {[%clk 0:07:07]} 36... Re6 {[%clk 0:07:27]} 37. Rc7
{[%clk 0:06:00]} 37... Ba4 {[%clk 0:05:06]} 38. Re7 {[%clk 0:01:06]} 38... Rxe7
{[%clk 0:05:03]} 39. Nxe7 {[%clk 0:01:34]} 39... Bd1 {[%clk 0:04:59]} 40. Nd5
{[%clk 0:01:44]} 40... Rb5 {[%clk 0:04:29]} 41. Nc3 {[%clk 0:01:41]} 41... Rxb6
{[%clk 0:04:55]} 42. Nxd1 {[%clk 0:01:58]} 42... exd1=Q {[%clk 0:05:16]} 43.
Rxd1 {[%clk 0:02:19]} 1/2-1/2

[Variant "Standard"]
[Site "Europe Echecs"]